[Event "45th FIDE Olympiad 2024"]
[Site "Budapest"]
[Date "2024.09.11"]
[Round "1.4"]
[White "Murshed, Niaz"]
[Black "Karabo, Mokete"]
[Result "1-0"]
[ECO "A79"]
[WhiteElo "2318"]
[BlackElo "1836"]
[Annotator "ChessBase"]
[PlyCount "55"]
[EventDate "2024.09.05"]
[EventType "team-tourn"]
[EventCountry "HUN"]
[SourceTitle "playchess.com"]
[Source "ChessBase"]
[SourceQuality "1"]
[WhiteTeam "Bangladesh"]
[BlackTeam "Lesotho"]
[WhiteTeamCountry "BAN"]
[BlackTeamCountry "LES"]
[TimeControl "40/5400+30:1800+30"]

1. d4 Nf6 2. c4 e6 3. Nf3 c5 4. d5 exd5 5. cxd5 d6 6. Nc3 g6 7. e4 Bg7 8. Nd2 O-O 9. Be2 Re8 10. O-O Na6 11. f3 Nc7 12. a4 b6 13. Nc4 Ba6 14. Bg5 Bxc4 15. Bxc4 a6 16. Qd3 h6 17. Bd2 Qe7 18. Rae1 Nd7 19. f4 Bd4+ 20. Kh1 b5 21. axb5 Reb8 22. bxa6 Rxb2 23. Rb1 Rb6 24. Ne2 Qf6 25. Ba5 Rxb1 26. Rxb1 Nxa6 27. Bxa6 Nb8 28. Bc4 1-0

[Event "45th FIDE Olympiad 2024"]
[Site "Budapest"]
[Date "2024.09.11"]
[Round "1.5"]
[White "Ziska, Helgi Dam"]
[Black "Mathurin, Nathaniel"]
[Result "0-1"]
[ECO "A07"]
[WhiteElo "2553"]
[BlackElo "1982"]
[Annotator "TA"]
[PlyCount "77"]
[EventDate "2024.09.05"]
[EventType "team-tourn"]
[EventCountry "HUN"]
[SourceTitle "playchess.com"]
[Source "ChessBase"]
[SourceQuality "1"]
[WhiteTeam "Faroe Islands"]
[BlackTeam "Saint Lucia"]
[WhiteTeamCountry "FAI"]
[TimeControl "40/5400+30:1800+30"]

{[%evp 11,77,3,10,-9,0,0,13,0,27,45,46,41,34,36,50,37,55,56,67,61,58,54,60,52,56,56,81,61,68,45,192,187,175,215,185,167,154,152,148,155,141,157,186,182,175,195,173,181,185,190,212,202,166,24,31,0,0,0,46,-31,104,101,100,106,329,202,185,190]} 1. Nf3 Nf6 2. g3 g6 3. Bg2 Bg7 4. O-O O-O 5. c4 c6 6. d3 d5 7. Qb3 dxc4 8. Qxc4 Nbd7 9. Nbd2 {[%cal Bb1d2,Bd2b3,Bb3a5][%mdl 32] The position is equal.} Qa5 10. Qc2 Nb6 11. h3 Rd8 12. Nb3 Qa4 13. Bd2 Be6 14. Rfc1 Nfd7 15. Na5 Rab8 (15... Qxc2 $2 16. Rxc2 Re8 17. Ng5 $18 (17. Nxb7 Rab8 $18)) 16. b3 Qa3 17. Rab1 h6 18. d4 Nf6 19. e4 {Wards off Bf5} Ne8 $1 {[%cal Oe8d6]} 20. Qc5 $36 {[%mdl 2048] Black is under pressure.} Qxa2 (20... Qxc5 $14 21. dxc5 (21. Rxc5 g5 $14) 21... Na8) 21. Qc3 $1 $18 {Threatens to win with Ra1.} (21. Qxe7 Rd6 $16) 21... Qa3 {[#]} 22. Bf4 {[%cal Ob1a1] Prevents Nc7. Strongly threatening Ra1!} g5 23. Bxb8 Rxb8 24. Ra1 Qd6 25. Nc4 Nxc4 26. bxc4 {[%cal Oe4e5]} (26. e5 Nxe5 27. dxe5 Qd7 $14) 26... c5 {[%cal Rc5d4]} 27. e5 cxd4 28. Qa5 (28. Nxd4 $2 Bxe5 29. c5 (29. Rd1 $2 Rd8 $19) 29... Qxd4 $19) (28. Qxd4 Qxd4 29. Nxd4 Bxe5 30. Nxe6 Bxa1 31. Rxa1 fxe6) 28... Qd8 29. Qxa7 d3 30. Rab1 Qc7 31. Qe3 Rd8 32. Nd2 (32. Bf1 $18) 32... Bxe5 $11 33. Rxb7 Bd4 $1 34. Qf3 Qc5 (34... Qe5 $11 {might be stronger.}) 35. Rb3 {[#] White is weak on the dark squares} (35. Nb3 $14 Qd6 (35... Qa3 36. Rd1 $18) 36. Nxd4 (36. Qxd3 $2 Bxf2+ 37. Kxf2 Qxd3 $19) (36. c5 Bxc5 37. Nxc5 d2 $15) 36... Qxd4 37. Rxe7) 35... Bd5 {A strong pair of Bishops.} 36. Qxd3 $16 (36. cxd5 $2 {perishes.} Qxc1+ 37. Nf1 d2 $19) 36... Bxf2+ 37. Kh2 Nf6 ({Wrong is} 37... Bxg3+ $2 38. Qxg3 Bxg2 39. Qxg2 $18) (37... Bxg2 $16 38. Qxd8 Bc6) 38. Rf1 (38. Bxd5 Rxd5 39. cxd5 Qxc1 $18) 38... Bxg3+ 39. Qxg3 {[%mdl 32768] Weighted Error Value: White=0.21 (precise) /Black=0.25 (precise) .  Loses game:     	---       	Black=1      Mistake:       	White=2     	Black=3      Inaccurate:     	White=2     	Black=1      OK:         	White=18    	Black=13     Best:        	White=1     	Black=2      Strong:       	---       	Black=2     . Loss on time!?} 0-1

[Event "45th FIDE Olympiad 2024"]
[Site "Budapest"]
[Date "2024.09.11"]
[Round "1.5"]
[White "Giron, Jorge Ernesto"]
[Black "Leko, Peter"]
[Result "0-1"]
[ECO "E16"]
[WhiteElo "2276"]
[BlackElo "2666"]
[Annotator "TA"]
[PlyCount "90"]
[EventDate "2024.09.05"]
[EventType "team-tourn"]
[EventCountry "HUN"]
[SourceTitle "playchess.com"]
[Source "ChessBase"]
[SourceQuality "1"]
[WhiteTeam "El Salvador"]
[BlackTeam "Hungary"]
[WhiteTeamCountry "ESA"]
[BlackTeamCountry "HUN"]
[TimeControl "40/5400+30:1800+30"]

{[%evp 14,90,10,13,12,0,5,15,8,-44,-33,-37,-39,-45,-51,-54,-22,-81,-76,-112,-71,-133,-116,-125,-105,-188,-156,-167,-130,-181,-173,-167,-160,-230,-248,-248,-226,-262,-250,-250,-249,-403,-376,-405,-375,-437,-443,-460,-486,-546,-364,-384,-385,-393,-374,-710,-650,-845,-923,-894,-901,-1089,-1118,-4718,-4718,-29974,-29975,-29975,-29976,-29976,-29976,-29977,-29979,-29979,-29980,-29980,-29981,-29981,-29981]} 1. d4 {[%emt 0:00:06]} Nf6 {[%emt 0:00:06]} 2. c4 {[%emt 0:00:06]} e6 {[%emt 0:00:06]} 3. g3 {[%emt 0:00:07]} Bb4+ {[%emt 0:00:12]} 4. Nd2 {[%emt 0:00:12]} O-O {[%emt 0:02:35]} 5. Ngf3 {[%emt 0:00:20]} d5 {[%emt 0:00:31]} 6. Bg2 {[%emt 0:00:14]} b6 {[%emt 0:00:18]} 7. O-O {[%emt 0:00:09]} Bb7 {[%emt 0:00:10]} 8. a3 {[%emt 0:00:17]} Be7 {[%emt 0:00:20]} 9. Ne5 {[%emt 0:08:49]} c5 {[%emt 0:03:35]} 10. dxc5 {[%emt 0:13:23]} bxc5 {[%emt 0:01:42] [#] The position is equal.} 11. b4 {[%emt 0:07:05]} cxb4 $15 {[%emt 0:11:35]} 12. axb4 {[%emt 0:00:11]} Bxb4 {[%emt 0:00:31]} 13. Qb3 {[%emt 0:05:19]} a5 {[%emt 0:01:45]} 14. Ba3 {[%emt 0:04:51]} Na6 {[%emt 0:06:30]} 15. Rfd1 {[%emt 0:09:05]} (15. Qb2 $11) 15... Nc5 $17 {[%emt 0:11:27] Black continues to play with concentration.} 16. Qc2 {[%emt 0:00:13]} Qe7 {[%emt 0:17:18]} 17. Rdb1 {[%emt 0:05:30]} (17. Bxb4 $142 axb4 18. Rab1) 17... Bxa3 {[%emt 0:06:58]} 18. Rxa3 {[%emt 0:00:06]} a4 {[%emt 0:00:23][%cal Oc5b3]} 19. Rba1 {[%emt 0:07:52]} (19. cxd5 $17 exd5 20. Qb2) 19... Rfc8 {[%emt 0:13:14]} 20. Nd3 {[%emt 0:05:54]} Nfd7 {[%emt 0:01:27]} 21. Qb2 {[%emt 0:10:25] [#]} (21. Qa2 $17) 21... Rab8 $1 $19 {[%emt 0:01:01]} 22. Qa2 {[%emt 0:04:22]} d4 {[%emt 0:02:30]} 23. f4 {[%emt 0:06:40]} (23. Qc2 $17) 23... Bxg2 {[%emt 0:03:10]} 24. Kxg2 {[%emt 0:00:15]} f6 {[%emt 0:00:13]} 25. Re1 {[%emt 0:01:49]} e5 {[%emt 0:00:41]} 26. fxe5 {[%emt 0:05:43]} fxe5 {[%emt 0:00:10]} 27. Nxc5 $2 {[%emt 0:00:09]} (27. Nb2) 27... Nxc5 {[%emt 0:00:07]} ({Inferior is} 27... Rxc5 28. Rxa4 Qe6 29. Ra6 $11) 28. Rf3 {[%emt 0:00:34]} h6 {[%emt 0:07:35]} 29. Qa3 {[%emt 0:01:57]} Qb7 {[%emt 0:00:55] Prevents Ne4. Threatens to win with ...e4.} ({Much less strong is} 29... e4 30. Rf5 $19) 30. Rb1 {[%emt 0:00:29]} Qc6 {[%emt 0:00:06]} 31. Rbf1 {[%emt 0:01:52]} Rb7 {[%emt 0:05:38]} 32. Kg1 {[%emt 0:00:20]} Rcb8 {[%emt 0:01:39]} 33. Rf5 {[%emt 0:00:20]} Rb2 {[%emt 0:00:20]} 34. Rxe5 $2 {[%emt 0:01:05]} (34. Rf8+ Kh7 35. Rxb8 Rxb8 36. Qa2) 34... Nd7 {[%emt 0:00:11]} 35. Rb5 {[%emt 0:00:08]} Rxd2 {[%emt 0:01:55]} 36. Rxb8+ Nxb8 {[%emt 0:00:01]} 37. Qf8+ {[%emt 0:01:59]} Kh7 {[%emt 0:00:01][%cal Od2e2]} 38. Qxb8 {[%emt 0:01:01][%mdl 4096] Endgame. KQR-KQR} d3 {[%emt 0:01:44]} 39. Qf4 {[%emt 0:00:29]} Rxe2 {[%emt 0:00:07][%csl Ge2][%cal Rc6g2] Black mates.} (39... Qc5+ 40. e3 Qh5 41. Qe4+ Qg6 42. Qd5 $19) 40. Qf5+ {[%emt 0:00:28]} Qg6 {[%emt 0:00:08]} 41. Qf3 {[%emt 0:01:35]} a3 {[%emt 0:03:49]} 42. c5 {[%emt 0:00:44]} Qe4 {[%emt 0:03:01]} 43. Qxe4+ {[%emt 0:02:09]} Rxe4 {[%emt 0:00:39]} 44. Rd1 {[%emt 0:01:35]} a2 {[%emt 0:00:33]} 45. Kf2 {[%emt 0:00:27] [#]} d2 $1 {[%emt 0:00:37][%mdl 512] Weighted Error Value: White=0.63/Black=0.12 (very precise) .  Mistake:       	White=8     	---        Inaccurate:     	White=1     	Black=3      OK:         	White=5     	Black=12     Best:        	White=1     	---        Strong:       	---       	Black=1} 0-1

[Event "45th FIDE Olympiad 2024"]
[Site "Budapest"]
[Date "2024.09.11"]
[Round "1.6"]
[White "Sjugirov, Sanan"]
[Black "Chavez, Ricardo Ernesto"]
[Result "1-0"]
[ECO "B42"]
[WhiteElo "2644"]
[BlackElo "2185"]
[Annotator "TA"]
[PlyCount "49"]
[EventDate "2024.09.05"]
[EventType "team-tourn"]
[EventCountry "HUN"]
[SourceTitle "playchess.com"]
[Source "ChessBase"]
[SourceQuality "1"]
[WhiteTeam "Hungary"]
[BlackTeam "El Salvador"]
[WhiteTeamCountry "HUN"]
[BlackTeamCountry "ESA"]
[TimeControl "40/5400+30:1800+30"]

{[%evp 21,49,41,51,25,80,37,33,30,41,37,43,43,80,81,345,343,354,349,789,761,793,777,783,786,817,815,816,808,758,747]} 1. e4 {[%emt 0:00:07]} c5 {[%emt 0:01:03]} 2. Nf3 {[%emt 0:00:20]} e6 {[%emt 0:00:19]} 3. d4 {[%emt 0:05:24]} cxd4 {[%emt 0:00:09]} 4. Nxd4 {[%emt 0:00:06]} a6 {[%emt 0:00:05]} 5. Bd3 {[%emt 0:00:53]} Nf6 {[%emt 0:00:21]} 6. O-O {[%emt 0:00:43]} Qc7 {[%emt 0:00:26]} 7. Qe2 {[%emt 0:01:32]} d6 {[%emt 0:00:27]} 8. c4 {[%emt 0:01:17]} g6 {[%emt 0:00:21]} 9. Nc3 {[%emt 0:01:57]} Bg7 {[%emt 0:00:13]} 10. Nf3 {[%emt 0:00:50]} O-O {[%emt 0:00:42]} 11. Rd1 {[%emt 0:00:47]} Nc6 {[%emt 0:01:53][%cal Bb8c6,Bc6d4,Bd4e2][%mdl 32]} 12. Bf4 {[%emt 0:01:41]} Ng4 {[%emt 0:05:08]} (12... e5 $11 {keeps the balance.} 13. Be3 Bg4) 13. Qd2 {[%emt 0:11:18]} Nge5 {[%emt 0:05:29]} 14. Be2 {[%emt 0:02:18] White is slightly better.} Nxf3+ {[%emt 0:02:27]} 15. Bxf3 {[%emt 0:00:09]} Nd4 {[%emt 0:05:48][%cal Oe6e5]} 16. Be2 {[%emt 0:01:18]} Nxe2+ {[%emt 0:13:48]} 17. Qxe2 {[%emt 0:01:26]} ({Much worse is} 17. Nxe2 Qxc4 18. Bxd6 Rd8 $11) 17... Bxc3 $2 {[%emt 0:03:17][%mdl 8192] [#] Loses the game.} (17... Rd8 $16) 18. Bxd6 $1 $18 {[%emt 0:01:35]} (18. bxc3 e5 19. Bh6 Re8 $16) 18... Qb6 {[%emt 0:07:37]} 19. Bxf8 {[%emt 0:01:29]} ({Don't take} 19. bxc3 Re8 20. Rab1 Qc6 $18) 19... Qxb2 {[%emt 0:03:09]} (19... Kxf8 20. bxc3 e5) 20. Qxb2 {[%emt 0:01:21] White is clearly winning.} Bxb2 {[%emt 0:00:07] [#]} 21. Rd8 $1 {[%emt 0:01:04][%cal Rf8h6]} Bf6 {[%emt 0:01:42]} 22. Re8 {[%emt 0:01:49][%cal Rf8h6]} h5 {[%emt 0:00:26]} 23. Be7+ {[%emt 0:00:06]} Kg7 {[%emt 0:00:07]} 24. Bxf6+ {[%emt 0:00:04]} Kxf6 {[%emt 0:00:04]} 25. Rd1 {[%emt 0:00:10] Weighted Error Value: White=0.10 (very precise) /Black=0.60.  Loses game:     	---       	Black=1      Mistake:       	---       	Black=2      Inaccurate:     	White=1     	Black=1      OK:         	White=3     	Black=4      Strong:       	White=1     	---} 1-0

[Event "45th FIDE Olympiad 2024"]
[Site "Budapest"]
[Date "2024.09.11"]
[Round "1.6"]
[White "Gabriel, Sixtus"]
[Black "Nielsen, Hogni Egilstoft"]
[Result "0-1"]
[ECO "C45"]
[WhiteElo "1800"]
[BlackElo "2379"]
[Annotator "ChessBase"]
[PlyCount "88"]
[EventDate "2024.09.05"]
[EventType "team-tourn"]
[EventCountry "HUN"]
[SourceTitle "playchess.com"]
[Source "ChessBase"]
[SourceQuality "1"]
[WhiteTeam "Saint Lucia"]
[BlackTeam "Faroe Islands"]
[BlackTeamCountry "FAI"]
[TimeControl "40/5400+30:1800+30"]

1. e4 e5 2. Nf3 Nc6 3. d4 exd4 4. Nxd4 Nf6 5. Nxc6 bxc6 6. e5 Qe7 7. Qe2 Nd5 8. c4 Nb6 9. Nc3 a5 10. f4 a4 11. Be3 Qe6 12. Kf2 Be7 13. Qd3 O-O 14. Be2 f6 15. exf6 Bxf6 16. Rhe1 Rb8 17. Rad1 d6 18. Bd4 Bxd4+ 19. Qxd4 c5 20. Qd3 Bb7 21. Nd5 Nxd5 22. Bf3 Nxf4 23. Rxe6 Nxd3+ 24. Rxd3 Bxf3 25. gxf3 Rxb2+ 26. Re2 Rxe2+ 27. Kxe2 Rf4 28. Rc3 Rd4 29. Ke3 Kf7 30. Rc2 Ke6 31. Rg2 g6 32. Rg4 Rxg4 33. fxg4 Ke5 34. h4 c6 35. h5 g5 36. h6 d5 37. a3 dxc4 38. Kd2 Kd4 39. Kc2 c3 40. Kc1 Kd3 41. Kd1 c2+ 42. Kc1 c4 43. Kb2 Kd2 44. Ka2 c3 0-1

[Event "45th FIDE Olympiad 2024"]
[Site "Budapest"]
[Date "2024.09.11"]
[Round "1.7"]
[White "Egilstoft, Rogvi"]
[Black "James, Justin"]
[Result "1-0"]
[ECO "B22"]
[WhiteElo "2278"]
[BlackElo "1745"]
[Annotator "ChessBase"]
[PlyCount "77"]
[EventDate "2024.09.05"]
[EventType "team-tourn"]
[EventCountry "HUN"]
[SourceTitle "playchess.com"]
[Source "ChessBase"]
[SourceQuality "1"]
[WhiteTeam "Faroe Islands"]
[BlackTeam "Saint Lucia"]
[WhiteTeamCountry "FAI"]
[TimeControl "40/5400+30:1800+30"]

1. e4 c5 2. c3 d5 3. exd5 Qxd5 4. d4 Nc6 5. Nf3 Bg4 6. dxc5 Qxd1+ 7. Kxd1 Nf6 8. Be2 a5 9. Be3 Nd5 10. Nd4 Bxe2+ 11. Kxe2 e6 12. Nxc6 bxc6 13. Nd2 Nxe3 14. fxe3 Bxc5 15. Rad1 O-O 16. Nc4 g6 17. Rd7 a4 18. Rhd1 Ba7 19. h3 Bb8 20. Rb7 h5 21. Nb6 Ra7 22. Rxa7 Bxa7 23. Nxa4 Rb8 24. Rd7 Bb6 25. Rd6 Bc7 26. Rxc6 Bg3 27. b3 Kf8 28. c4 Ke7 29. Ra6 Rb7 30. c5 Bc7 31. Kd3 f5 32. Kc4 g5 33. b4 h4 34. b5 g4 35. b6 Bg3 36. Ra7 Rd7 37. c6 Rxa7 38. bxa7 gxh3 39. gxh3 1-0

[Event "45th FIDE Olympiad 2024"]
[Site "Budapest"]
[Date "2024.09.11"]
[Round "1.7"]
[White "Arias, Daniel"]
[Black "Berkes, Ferenc"]
[Result "0-1"]
[ECO "B12"]
[WhiteElo "2213"]
[BlackElo "2605"]
[Annotator "TA"]
[PlyCount "74"]
[EventDate "2024.09.05"]
[EventType "team-tourn"]
[EventCountry "HUN"]
[SourceTitle "playchess.com"]
[Source "ChessBase"]
[SourceQuality "1"]
[WhiteTeam "El Salvador"]
[BlackTeam "Hungary"]
[WhiteTeamCountry "ESA"]
[BlackTeamCountry "HUN"]
[TimeControl "40/5400+30:1800+30"]

{[%evp 11,74,30,18,14,48,41,42,8,48,16,39,0,9,-16,-4,-11,0,0,0,-48,-48,-63,-45,-49,-55,-62,-45,-57,-36,-87,-58,-62,-39,-117,-104,-112,-88,-84,-10,-7,-18,-129,-133,-206,-181,-215,-161,-245,-230,-247,-228,-272,-279,-445,-460,-589,-568,-665,-674,-627,-640,-902,-896,-896,-910]} 1. e4 {[%emt 0:00:19][%cal Be2e4,Be4e5][%mdl 32]} c6 {[%emt 0:00:11]} 2. d4 {[%emt 0:00:35]} d5 {[%emt 0:00:06]} 3. e5 {[%emt 0:00:07]} Bf5 {[%emt 0:00:15]} 4. Nf3 {[%emt 0:00:08]} e6 {[%emt 0:00:09]} 5. Be2 {[%emt 0:00:22]} Ne7 {[%emt 0:00:19]} 6. O-O {[%emt 0:00:59]} h6 {[%emt 0:00:09]} 7. a4 {[%emt 0:03:47]} a5 {[%emt 0:04:11]} 8. Na3 {[%emt 0:04:57]} Bh7 {[%emt 0:09:20]} 9. c4 {[%emt 0:06:37] White is slightly better.} Na6 {[%emt 0:03:47]} 10. Bd2 {[%emt 0:08:58]} Nb4 {[%emt 0:02:21]} 11. Rc1 {[%emt 0:09:34]} (11. c5 $5) 11... dxc4 {[%emt 0:05:46]} 12. Nxc4 {[%emt 0:06:56]} Ned5 {[%emt 0:00:14]} 13. Qb3 {[%emt 0:01:55]} Be7 {[%emt 0:00:32]} 14. Rfd1 {[%emt 0:01:49]} O-O {[%emt 0:02:32]} 15. Bf1 {[%emt 0:02:26]} (15. Ne1 $11) 15... Bg6 $15 {[%emt 0:19:20]} 16. g3 {[%emt 0:15:06]} Kh8 {[%emt 0:11:15]} 17. Be1 {[%emt 0:06:06]} Bh5 {[%emt 0:02:56]} 18. Bg2 {[%emt 0:00:48]} b5 {[%emt 0:04:13]} 19. Bxb4 {[%emt 0:06:56]} Nxb4 {[%emt 0:02:56]} ({Reject} 19... axb4 20. axb5 cxb5 21. Ne3 $11) 20. Ne3 {[%emt 0:05:52]} (20. Nd6 $15) 20... Qb6 {[%emt 0:00:55]} 21. axb5 {[%emt 0:04:55]} cxb5 {[%emt 0:00:09]} 22. g4 {[%emt 0:04:50]} (22. Qc3 $1 $15) 22... Bg6 $36 {[%emt 0:01:07][%mdl 2048] White is under strong pressure.} 23. d5 {[%emt 0:03:30]} a4 {[%emt 0:11:02]} 24. Qc3 {[%emt 0:01:27]} exd5 {[%emt 0:00:06] Black is more active.} (24... Nxd5 $17 25. Nxd5 exd5) 25. Qc7 {[%emt 0:02:01]} Bd8 {[%emt 0:00:35]} (25... Qxc7 {simplifies} 26. Rxc7 Bd8 27. Rb7 Bg5) 26. Qxb6 {[%emt 0:00:20]} (26. Qc3 $1 $11 {keeps the balance.} Be7 27. Nh4) 26... Bxb6 {[%emt 0:00:05]} 27. Nxd5 {[%emt 0:00:07]} (27. Nf5 $17 {was worth a try.}) 27... Nxd5 $19 {[%emt 0:03:46]} 28. Rxd5 {[%emt 0:00:07]} Rfc8 {[%emt 0:00:21]} 29. Rf1 {[%emt 0:02:44]} (29. Rxc8+ Rxc8 30. h4 (30. Rxb5 $2 {perishes.} Rc1+ 31. Bf1 Rxf1+ 32. Kg2 Rxf2+ 33. Kg3 Be4 $19) 30... b4 $19) (29. Rdd1 {keeps fighting.}) 29... Rab8 {[%emt 0:01:26]} 30. Nh4 {[%emt 0:00:31] [#]} Bc2 {[%emt 0:00:21]} 31. Rd7 {[%emt 0:00:38]} Bb3 {[%emt 0:00:47] aiming for ...Rc2. A strong pair of Bishops.} 32. Nf5 {[%emt 0:00:20]} (32. Be4 $142) 32... Rc2 {[%emt 0:05:00] Black is clearly winning.} 33. Nd6 {[%emt 0:00:38]} Rxb2 {[%emt 0:00:14]} 34. Nxf7+ {[%emt 0:00:24]} Kg8 {[%emt 0:00:08]} 35. Nd6 {[%emt 0:00:08][%cal Od6f5]} a3 {[%emt 0:01:29][%cal Ob2f2] Strongly threatening ...Rxf2!} 36. Nxb5 {[%emt 0:00:54]} a2 {[%emt 0:00:12][%cal Ob6f2] ...Bxf2+! is the strong threat.} 37. Nc3 {[%emt 0:00:32] [#]} Rxf2 $1 {[%emt 0:00:43][%mdl 512] Weighted Error Value: White=0.48/Black=0.13 (very precise) .  Mistake:       	White=7     	Black=1      Inaccurate:     	White=3     	Black=3      OK:         	White=6     	Black=10     Best:        	---       	Black=2} 0-1

[Event "45th FIDE Olympiad 2024"]
[Site "Budapest"]
[Date "2024.09.11"]
[Round "1.8"]
[White "Gledura, Benjamin"]
[Black "Morales, Carlos"]
[Result "1-0"]
[ECO "A28"]
[WhiteElo "2628"]
[BlackElo "2131"]
[Annotator "TA"]
[PlyCount "100"]
[EventDate "2024.09.05"]
[EventType "team-tourn"]
[EventCountry "HUN"]
[SourceTitle "playchess.com"]
[Source "ChessBase"]
[SourceQuality "1"]
[WhiteTeam "Hungary"]
[BlackTeam "El Salvador"]
[WhiteTeamCountry "HUN"]
[BlackTeamCountry "ESA"]
[TimeControl "40/5400+30:1800+30"]

{[%evp 13,100,-20,3,-30,-38,-41,-40,-49,-47,-40,-22,-29,-14,-33,-27,-88,-9,-10,-17,-60,0,0,43,0,38,43,39,22,56,40,46,35,59,24,28,21,30,15,44,43,31,43,80,63,120,123,123,129,152,152,160,152,156,153,150,154,155,147,166,158,169,162,158,158,183,158,217,206,281,275,300,249,249,249,295,270,276,275,233,233,263,210,438,391,567,587,988,891,738]} 1. c4 {[%emt 0:00:04]} e5 {[%emt 0:00:50]} 2. Nc3 {[%emt 0:00:18]} Nf6 {[%emt 0:00:17]} 3. Nf3 {[%emt 0:01:57]} Nc6 {[%emt 0:00:11]} 4. e3 {[%emt 0:01:25]} Bb4 {[%emt 0:03:30]} 5. Qc2 {[%emt 0:05:04]} O-O {[%emt 0:06:45]} 6. Nd5 {[%emt 0:00:41]} Re8 {[%emt 0:01:43]} 7. a3 {[%emt 0:01:14]} Bf8 {[%emt 0:00:21]} (7... e4 $5) 8. Qf5 {[%emt 0:19:54]} Nxd5 {[%emt 0:17:28]} 9. cxd5 {[%emt 0:00:12][%cal Of3g5] [#] Strongly threatening Ng5!} d6 {[%emt 0:00:14]} 10. Qc2 {[%emt 0:00:21] Black is slightly better.} Ne7 {[%emt 0:04:35]} 11. Bc4 {[%emt 0:04:25]} Bf5 {[%emt 0:04:49]} 12. e4 {[%emt 0:04:05]} Bg4 {[%emt 0:00:39]} 13. Qb3 {[%emt 0:03:15]} Rb8 {[%emt 0:03:31]} 14. a4 {[%emt 0:00:17]} (14. O-O $11 {remains equal.}) 14... Ng6 {[%emt 0:01:00]} (14... c6 $17 {White should prevent ...cxd5.} 15. O-O Bh5) 15. h3 $11 {[%emt 0:00:51]} Bd7 {[%emt 0:00:16]} 16. g3 {[%emt 0:07:03] Inhibits Nf4.} a5 {[%emt 0:13:52]} ({Black should try} 16... a6 $15) 17. d3 {[%emt 0:04:58]} Be7 {[%emt 0:04:23]} 18. Bd2 {[%emt 0:01:15]} b6 {[%emt 0:01:21]} 19. h4 {[%emt 0:03:22]} Nf8 {[%emt 0:00:39]} 20. Rc1 {[%emt 0:01:11]} Bg4 {[%emt 0:02:52]} 21. Nh2 {[%emt 0:00:33][%cal Bf3h2,Bh2f1,Bf1d2,Bd2c4][%mdl 32]} Bd7 {[%emt 0:01:55]} 22. Nf1 {[%emt 0:03:27]} Ra8 {[%emt 0:01:16]} 23. Be3 {[%emt 0:06:02]} Bc8 {[%emt 0:03:16]} 24. Bb5 {[%emt 0:02:42]} Nd7 {[%emt 0:02:12]} 25. Bc6 {[%emt 0:04:19]} Ra7 {[%emt 0:00:11]} 26. Nd2 {[%emt 0:01:05]} Rf8 {[%emt 0:00:29]} 27. Nc4 {[%emt 0:01:21]} Ba6 {[%emt 0:05:35]} 28. Nxa5 {[%emt 0:04:15] White is much more active. White stays focused until the end.} Nc5 {[%emt 0:03:38]} (28... Nb8 $1 $14) 29. Bxc5 $16 {[%emt 0:00:16]} dxc5 {[%emt 0:00:26]} 30. Nc4 $36 {[%emt 0:00:12][%mdl 2048] White is really pushing.} Bxc4 {[%emt 0:01:02]} 31. dxc4 {[%emt 0:02:21]} Bd6 {[%emt 0:00:42] Black is weak on the light squares} 32. Qe3 {[%emt 0:00:34]} Qf6 {[%emt 0:02:13]} 33. b3 {[%emt 0:01:30]} h6 {[%emt 0:01:25]} 34. Kd2 {[%emt 0:01:06]} Qg6 {[%emt 0:02:24]} 35. Rhf1 {[%emt 0:06:03]} Qg4 {[%emt 0:02:51]} 36. Rce1 {[%emt 0:00:44]} Be7 {[%emt 0:00:46]} 37. Kc2 {[%emt 0:00:40]} Ra6 {[%emt 0:00:35]} 38. Qe2 {[%emt 0:01:44]} Qg6 {[%emt 0:02:27]} 39. Qd3 {[%emt 0:03:21]} Ra5 {[%emt 0:01:16]} (39... Qg4 $16 40. f4 Bd6) 40. f4 $18 {[%emt 0:00:43]} exf4 {[%emt 0:01:15]} 41. Rxf4 {[%emt 0:31:44]} f6 {[%emt 0:31:09]} 42. e5 {[%emt 0:00:00] Against Bd6} Qxd3+ {[%emt 0:00:00]} 43. Kxd3 {[%emt 0:00:00]} fxe5 {[%emt 0:00:00]} 44. Rxf8+ {[%emt 0:00:00]} ({But not} 44. Rxe5 $6 Rxf4 45. gxf4 Bxh4 $16) 44... Bxf8 {[%emt 0:00:00]} 45. Rxe5 {[%emt 0:00:00][%mdl 4096] Endgame. KRB-KRB} Bd6 {[%emt 0:00:00]} 46. Re3 {[%emt 0:00:00]} Ra7 {[%emt 0:00:00]} 47. Ke4 {[%emt 0:00:00]} Kf7 $2 {[%emt 0:00:00] [#]} (47... Be7 48. h5 Kf7) 48. Rf3+ {[%emt 0:00:00]} Ke7 {[%emt 0:00:00]} (48... Kg6 {might work better.} 49. g4 (49. Be8+ Kh7 $18) 49... Bh2) 49. g4 {[%emt 0:00:00]} g5 {[%emt 0:00:00]} 50. hxg5 {[%emt 0:00:00]} hxg5 {[%emt 0:00:00] Weighted Error Value: White=0.11 (very precise) /Black=0.32.  Mistake:       	White=1     	Black=6      Inaccurate:     	White=3     	Black=7      OK:         	White=17    	Black=11     Best:        	White=3     	Black=1} 1-0

[Event "45th FIDE Olympiad 2024"]
[Site "Budapest"]
[Date "2024.09.11"]
[Round "1.8"]
[White "Elizee, Kaieem"]
[Black "Apol, Luitjen Akselsson"]
[Result "0-1"]
[ECO "D00"]
[WhiteElo "1701"]
[BlackElo "2219"]
[Annotator "ChessBase"]
[PlyCount "42"]
[EventDate "2024.09.05"]
[EventType "team-tourn"]
[EventCountry "HUN"]
[SourceTitle "playchess.com"]
[Source "ChessBase"]
[SourceQuality "1"]
[WhiteTeam "Saint Lucia"]
[BlackTeam "Faroe Islands"]
[BlackTeamCountry "FAI"]
[TimeControl "40/5400+30:1800+30"]

1. d4 Nf6 2. Nf3 g6 3. Nc3 d5 4. Bf4 Bg7 5. e3 O-O 6. Be2 c5 7. dxc5 Qa5 8. Qd2 Qxc5 9. O-O-O Qb6 10. Ne5 Nc6 11. Bf3 Rd8 12. Nxc6 bxc6 13. e4 Be6 14. exd5 Nxd5 15. Bxd5 cxd5 16. h4 d4 17. Ne4 d3 18. Nc3 Rac8 19. h5 Bxc3 20. bxc3 Bxa2 21. Qe3 d2+ 0-1